bitfinex/quotes_BTCUSD_20251011
["timestamp","ask_amount","ask_price","bid_price","bid_amount"]
[1760220320935,4.195268,111090.0,111080.0,0.001]
[1760220321140,5.60842211,111090.0,111080.0,0.001]
[1760220321346,5.72097551,111090.0,111080.0,0.002764]
[1760220321549,5.69714145,111090.0,111080.0,0.002764]
[1760220322203,5.69814145,111090.0,111080.0,0.002764]
[1760220322618,5.72240626,111090.0,111080.0,0.002764]
[1760220323369,1.52713826,111090.0,111080.0,0.002764]
[1760220323574,5.49830106,111090.0,111080.0,0.002764]
[1760220325201,4.86654158,111090.0,111080.0,0.002764]
[1760220325676,5.49830106,111090.0,111080.0,0.002764]
[1760220326118,1.30303306,111090.0,111080.0,0.002764]
[1760220326440,5.49830106,111090.0,111080.0,0.002764]
[1760220328101,1.30303306,111090.0,111080.0,0.002764]
[1760220328488,5.49830106,111090.0,111080.0,0.002764]
[1760220328922,1.30298073,111090.0,111080.0,0.002764]
[1760220329124,5.49824873,111090.0,111080.0,0.002764]
[1760220330105,1.30298073,111090.0,111080.0,0.002764]
[1760220330312,4.86648925,111090.0,111080.0,0.002764]
[1760220330514,5.49824873,111090.0,111080.0,0.002764]
[1760220332219,5.53421404,111090.0,111080.0,0.002764]
[1760220333841,1.33894604,111090.0,111080.0,0.002764]
[1760220334030,5.53421404,111090.0,111080.0,0.002764]
[1760220334435,1.31468123,111090.0,111080.0,0.002764]
[1760220334636,5.50994923,111090.0,111080.0,0.002764]
[1760220335805,5.58889788,111090.0,111080.0,0.002764]
[1760220335980,0.74118399,111090.0,111080.0,0.002764]
[1760220336192,5.56821147,111090.0,111080.0,0.002764]
[1760220336397,5.51965562,111090.0,111080.0,0.002764]
[1760220336602,5.56821147,111090.0,111080.0,0.002764]
[1760220337360,1.37294347,111090.0,111080.0,0.002764]
[1760220337564,5.39330894,111090.0,111080.0,0.002764]
[1760220337768,1.19804094,111090.0,111080.0,0.002764]
[1760220337970,5.39330894,111090.0,111080.0,0.002764]
[1760220338189,1.19804094,111090.0,111080.0,0.002764]
[1760220338391,5.39330894,111090.0,111080.0,0.002764]
[1760220338543,1.19804094,111090.0,111080.0,0.002764]
[1760220338746,5.39330894,111090.0,111080.0,0.002764]
[1760220339268,5.39330755,111090.0,111080.0,1e-08]
[1760220340305,5.36095447,111090.0,111080.0,1e-08]
[1760220340516,5.48334676,111090.0,111080.0,1e-08]
[1760220340657,1.48328478,111080.0,111070.0,1e-08]
[1760220340860,4.90836586,111080.0,111070.0,1e-08]
[1760220341119,5.3445364,111080.0,111070.0,1e-08]
[1760220341320,5.36522281,111080.0,111070.0,1e-08]
[1760220341473,1.16995481,111080.0,111070.0,1e-08]
[1760220341673,4.72033462,111070.0,111060.0,1e-08]
[1760220341904,5.4198851,111070.0,111060.0,1e-08]
[1760220342108,5.37536463,111070.0,111060.0,1e-08]
[1760220342678,0.18009905,111050.0,111040.0,0.05220066]
[1760220342881,5.65087398,111050.0,111040.0,0.03216898]
[1760220343106,0.18011527,111040.0,111030.0,0.0004]
[1760220343307,0.65376525,111040.0,111030.0,0.0004]
[1760220344313,0.67327737,111040.0,111030.0,0.0004]
[1760220344960,0.21642042,111040.0,111030.0,0.10081]
[1760220345161,0.65391477,111040.0,111030.0,0.10081]
[1760220345565,0.68863258,111040.0,111030.0,0.10081]
[1760220346171,0.02587417,111040.0,111030.0,0.28094149]
[1760220346374,0.50851731,111040.0,111030.0,0.30094148]
[1760220346790,0.50851731,111040.0,111030.0,0.30388321]
[1760220348093,0.52790209,111040.0,111030.0,0.30388321]
[1760220348669,0.52790209,111040.0,111030.0,0.12375172]
[1760220348670,0.70801736,111040.0,111030.0,0.12375172]
[1760220348892,0.22537422,111040.0,111030.0,0.12375172]
[1760220349123,0.68863258,111040.0,111030.0,0.12375172]
[1760220349292,0.7967367,111040.0,111030.0,0.12375172]
[1760220349737,0.70801736,111040.0,111030.0,0.12375172]
[1760220349933,0.51897047,111040.0,111030.0,0.30388321]
[1760220350134,0.69908574,111040.0,111030.0,0.30388321]
[1760220350335,0.72327996,111040.0,111030.0,0.12375172]
[1760220353355,0.73226119,111040.0,111030.0,0.12375172]
[1760220353765,0.85886053,111040.0,111030.0,0.12375172]
[1760220354393,0.77014119,111040.0,111030.0,0.30388321]
[1760220357903,0.09840155,111040.0,111030.0,0.30388321]
[1760220358143,0.07420733,111040.0,111030.0,0.30388321]
[1760220358277,0.55685047,111040.0,111030.0,0.30388321]
[1760220358937,0.07420733,111040.0,111030.0,0.30388321]
[1760220359078,0.53746569,111040.0,111030.0,0.30388321]
[1760220359276,0.55685047,111040.0,111030.0,0.30388321]
[1760220359781,0.07420733,111040.0,111030.0,0.30388321]
[1760220359970,0.05482255,111040.0,111030.0,0.30388321]
[1760220360199,0.05482255,111040.0,111030.0,0.33403511]
[1760220360416,0.05482255,111040.0,111030.0,0.81667825]
[1760220361929,0.05482255,111040.0,111030.0,0.81767825]
[1760220362146,0.05482255,111040.0,111030.0,0.33503511]
[1760220362401,0.05482255,111040.0,111030.0,0.81767825]
[1760220363257,0.05482255,111040.0,111030.0,0.33503511]
[1760220363463,0.05482255,111040.0,111030.0,0.81767825]
[1760220365183,0.03802952,111040.0,111030.0,0.81767825]
[1760220366033,0.03802952,111040.0,111030.0,0.33503511]
[1760220370819,0.03802952,111040.0,111030.0,0.81767825]
[1760220371033,0.03802952,111040.0,111030.0,0.33503511]
[1760220371245,0.52067266,111040.0,111030.0,0.33503511]
[1760220371467,0.03802952,111040.0,111030.0,0.33503511]
[1760220373215,0.03802952,111040.0,111030.0,0.81767825]
[1760220373427,0.03802952,111040.0,111030.0,0.33503511]
[1760220375027,0.03802952,111040.0,111030.0,0.81767825]
[1760220375281,0.03802952,111040.0,111030.0,1.30032139]
[1760220375821,0.03802952,111040.0,111030.0,1.64032139]
[1760220376031,0.03802952,111040.0,111030.0,0.67503511]
[1760220376252,0.03802952,111040.0,111030.0,1.64032139]
[1760220377752,0.03802952,111040.0,111030.0,1.74032138]
[1760220377977,1e-08,111040.0,111030.0,2.25105229]
[1760220378398,1e-08,111040.0,111030.0,2.25005229]
[1760220378833,1e-08,111040.0,111030.0,2.25105229]
[1760220379271,1e-08,111040.0,111030.0,0.80312287]
[1760220379477,1e-08,111040.0,111030.0,1.76840915]
[1760220379897,0.1641548,111080.0,111070.0,0.01999999]
[1760220380084,0.20214485,111080.0,111070.0,0.60584313]
[1760220381230,0.20214485,111080.0,111070.0,0.60684313]
[1760220381459,0.20214485,111080.0,111070.0,0.60784313]
[1760220381898,0.20214485,111080.0,111070.0,0.12519999]
[1760220382082,0.20214485,111080.0,111070.0,0.60784313]
[1760220382322,0.01138412,111080.0,111070.0,0.60784313]
[1760220382554,0.19143984,111080.0,111070.0,0.60784313]
[1760220382806,0.19143984,111080.0,111070.0,0.12519999]
[1760220383052,0.20044236,111080.0,111070.0,0.12519999]
[1760220383490,0.20044236,111080.0,111070.0,0.60784313]
[1760220385430,0.20044236,111080.0,111070.0,0.60843127]
[1760220386072,0.01138412,111080.0,111070.0,0.81864979]
[1760220386290,0.03880691,111090.0,111080.0,0.5702023]
[1760220386498,0.18904417,111120.0,111110.0,0.01999999]
[1760220386686,0.22688417,111120.0,111110.0,0.55911313]
[1760220386954,0.22688417,111120.0,111110.0,0.60584313]
[1760220387379,0.22864764,111120.0,111110.0,0.60584313]
[1760220387586,0.22864764,111120.0,111110.0,0.12319999]
[1760220388258,0.22964764,111120.0,111110.0,0.12319999]
[1760220389114,0.24687764,111120.0,111110.0,0.12319999]
[1760220389301,0.24787764,111120.0,111110.0,0.12319999]
[1760220389752,0.27832764,111120.0,111110.0,0.01999999]
[1760220389968,0.27832764,111120.0,111090.0,0.01999999]
[1760220389969,0.180018,111100.0,111090.0,0.01999999]
[1760220390185,0.1800342,111090.0,111080.0,0.02146627]
[1760220390425,0.2104842,111090.0,111080.0,0.07785627]
[1760220390653,0.2104842,111090.0,111080.0,0.02146627]
[1760220390883,0.22729651,111090.0,111080.0,0.05343627]
[1760220391100,0.22729651,111090.0,111080.0,0.02146627]
[1760220391543,0.31601585,111090.0,111080.0,0.02146627]
[1760220391731,0.31601585,111090.0,111080.0,0.00146628]
[1760220391732,0.22729651,111090.0,111080.0,0.00146628]
[1760220391993,0.26094651,111090.0,111080.0,0.00146628]
[1760220392850,0.22729651,111090.0,111080.0,0.00146628]
[1760220393043,0.26094651,111090.0,111080.0,0.00146628]
[1760220393500,0.71713447,111090.0,111080.0,0.00146628]
[1760220393708,0.80585381,111090.0,111080.0,0.00146628]
[1760220393916,0.71713447,111090.0,111080.0,0.00146628]
[1760220394126,0.26094651,111090.0,111080.0,0.00146628]
[1760220394568,0.22729651,111090.0,111080.0,0.00146628]
[1760220395187,0.26094651,111090.0,111080.0,0.00146628]
[1760220395394,0.22729651,111090.0,111080.0,0.00146628]
[1760220396040,0.22729651,111090.0,111080.0,0.03209628]
[1760220396249,0.22729651,111090.0,111080.0,0.00146628]
[1760220396874,0.26094651,111090.0,111080.0,0.00146628]
[1760220397086,0.22729651,111090.0,111080.0,0.00146628]
[1760220397305,0.22729651,111090.0,111080.0,0.03209628]
[1760220397522,0.22729651,111090.0,111080.0,0.05464628]
[1760220397735,0.22729651,111090.0,111080.0,0.00146628]
[1760220397974,0.93242421,111090.0,111080.0,0.00146628]
[1760220398192,0.24667425,111090.0,111080.0,0.00146628]
[1760220398399,0.26094651,111090.0,111080.0,0.00146628]
[1760220400326,0.22729651,111090.0,111080.0,0.00146628]
[1760220400573,0.26094651,111090.0,111080.0,0.00146628]
[1760220401404,0.22729651,111090.0,111080.0,0.00146628]
[1760220401818,0.26029651,111090.0,111080.0,0.00146628]
[1760220402027,0.22729651,111090.0,111080.0,0.00146628]
[1760220402244,0.22729651,111090.0,111080.0,0.05563628]
[1760220403318,0.22618651,111090.0,111080.0,0.09974628]
[1760220403525,0.22614651,111090.0,111080.0,0.05563628]
[1760220405152,0.19680651,111090.0,111080.0,0.11974627]
[1760220406769,0.01681231,111090.0,111080.0,0.97929121]
[1760220407051,0.00058793,111100.0,111090.0,0.23018609]
[1760220407291,0.00058793,111100.0,111090.0,0.92824368]
[1760220407526,0.00058793,111100.0,111090.0,0.75669122]
[1760220409502,0.00058793,111100.0,111090.0,0.95927862]
[1760220409931,0.00058793,111100.0,111090.0,0.96027862]
[1760220410143,0.00058793,111100.0,111090.0,0.96127862]
[1760220411470,0.00058793,111100.0,111090.0,0.33046609]
[1760220411703,0.00058793,111100.0,111090.0,0.96127862]
[1760220412390,0.00058793,111100.0,111090.0,1.30127862]
[1760220415638,0.03784,111120.0,111110.0,1.02096442]
[1760220415877,0.03784,111120.0,111110.0,1.32357621]
[1760220416081,0.0390156,111120.0,111110.0,1.35513621]
[1760220416283,0.0390156,111120.0,111110.0,1.39924621]
[1760220416494,0.0390156,111120.0,111110.0,1.42631387]
[1760220417330,0.0390156,111120.0,111110.0,1.42731387]
[1760220418185,0.0390156,111120.0,111110.0,1.42831387]
[1760220419036,0.0390156,111120.0,111110.0,0.69750135]
[1760220419242,0.0390156,111120.0,111110.0,0.67043369]
[1760220419448,0.0390156,111120.0,111110.0,1.30124622]
[1760220420304,0.0390156,111120.0,111110.0,0.67043369]
[1760220420514,0.0390156,111120.0,111110.0,1.30124622]
[1760220420721,0.03784,111140.0,111130.0,0.1799694]
[1760220420968,0.03784,111140.0,111130.0,0.2341394]
[1760220421171,0.03784,111140.0,111130.0,0.2782494]
[1760220421627,0.21779321,111140.0,111130.0,0.2782494]
[1760220421825,0.21794329,111140.0,111130.0,0.2782494]
[1760220422308,0.03799008,111140.0,111130.0,0.2782494]
[1760220426418,0.03916536,111140.0,111130.0,0.2782494]
[1760220427614,0.0002,111160.0,111150.0,0.05015189]
[1760220427829,0.00024999,111160.0,111150.0,0.3668541]
[1760220428037,0.00024999,111160.0,111150.0,1.33766663]
[1760220428252,0.05458749,111180.0,111170.0,0.86086907]
[1760220428461,0.03788998,111180.0,111170.0,0.88334907]
[1760220428709,0.03788998,111180.0,111170.0,0.95861907]
[1760220428925,0.03788998,111180.0,111170.0,0.97076556]
[1760220429876,0.03788998,111180.0,111170.0,1.31076556]
[1760220430101,0.03788998,111180.0,111170.0,1.41076555]
[1760220430326,0.03788998,111180.0,111170.0,0.77995302]
[1760220430545,0.03788998,111180.0,111170.0,1.41076555]
[1760220431230,0.03788998,111180.0,111170.0,1.31076556]
[1760220431665,0.03788998,111180.0,111170.0,1.41076555]
[1760220432330,0.03788998,111180.0,111170.0,1.31076556]
[1760220432561,0.03788998,111180.0,111170.0,1.41176555]
[1760220432984,0.03788998,111180.0,111170.0,1.41276555]
[1760220433804,0.03788998,111180.0,111170.0,1.31276556]
[1760220434014,0.03788998,111180.0,111170.0,1.41276555]
[1760220434242,0.04023948,111180.0,111170.0,1.41276555]
[1760220435092,0.04023948,111180.0,111170.0,1.28061908]
[1760220435308,0.04023948,111180.0,111170.0,1.40061906]
[1760220435735,0.04023948,111180.0,111170.0,1.30061907]
[1760220435942,0.04023948,111180.0,111170.0,1.40061906]
[1760220437454,0.04023948,111180.0,111170.0,1.30061907]
[1760220437689,0.04023948,111180.0,111170.0,1.40061906]
[1760220439014,0.0002,111210.0,111170.0,1.40061906]
[1760220439230,0.038,111210.0,111200.0,0.87280863]
[1760220441137,0.038,111210.0,111200.0,0.92719053]
[1760220442014,0.038,111210.0,111200.0,0.92819053]
[1760220442224,0.038,111210.0,111200.0,0.92919053]
[1760220444201,0.038,111210.0,111200.0,0.298378]
[1760220444476,0.038,111210.0,111200.0,0.92919053]
[1760220444876,0.03976133,111210.0,111200.0,0.92919053]
[1760220445616,0.03976133,111210.0,111200.0,0.298378]
[1760220446927,0.03976133,111210.0,111200.0,0.06413999]
[1760220447132,0.65875127,111210.0,111200.0,0.02199999]
[1760220447357,0.65875127,111210.0,111200.0,0.002]
[1760220447568,0.74503614,111210.0,111200.0,0.002]
[1760220447984,0.74503614,111210.0,111200.0,0.001]
[1760220448445,0.74503614,111210.0,111170.0,0.01307594]
[1760220448446,0.51987229,111190.0,111170.0,0.01307594]
[1760220448650,0.20394846,111180.0,111170.0,0.03307593]
[1760220448856,0.35382653,111180.0,111170.0,0.02096593]
[1760220449041,0.69382653,111180.0,111170.0,0.02096593]
[1760220449401,0.69382653,111180.0,111170.0,0.00096594]
[1760220449611,1.32463906,111180.0,111170.0,0.00096594]
[1760220451242,0.69382653,111180.0,111170.0,0.00096594]
[1760220451725,0.61903846,111180.0,111170.0,0.00096594]
[1760220452162,0.63578131,111180.0,111170.0,0.00096594]
[1760220452396,0.59073131,111180.0,111170.0,0.01307594]
[1760220452611,0.53663131,111180.0,111170.0,0.06570593]
[1760220452830,0.59188131,111180.0,111170.0,0.06570593]
[1760220453053,0.53663131,111180.0,111170.0,0.06570593]
[1760220453267,0.53663131,111180.0,111170.0,0.24561058]
[1760220453516,0.35674285,111180.0,111170.0,0.27440058]
[1760220453732,0.01929924,111200.0,111190.0,0.19986057]
[1760220453955,0.1734717,111210.0,111190.0,0.24917057]
[1760220454175,0.3533143,111210.0,111200.0,0.01999999]
[1760220454393,0.3850443,111210.0,111200.0,0.01999999]
[1760220454610,0.38680563,111210.0,111200.0,0.01999999]
[1760220454820,0.72680563,111210.0,111200.0,0.05262999]
[1760220455253,0.77385563,111210.0,111200.0,0.01999999]
[1760220455701,0.77585563,111210.0,111200.0,0.01999999]
[1760220456567,0.79518105,111210.0,111200.0,0.01999999]
[1760220457196,0.74813105,111210.0,111200.0,0.01999999]
[1760220457408,0.79518105,111210.0,111200.0,0.01999999]
[1760220459785,0.79518105,111210.0,111200.0,0.05262999]
[1760220459786,0.74813105,111210.0,111200.0,0.05262999]
[1760220460209,0.49063926,111210.0,111200.0,0.05262999]
[1760220460456,0.49063926,111210.0,111200.0,0.06466999]
[1760220461083,0.45890926,111210.0,111200.0,0.11490999]
[1760220461295,0.04156133,111210.0,111200.0,0.2947661]
[1760220461511,0.04156133,111210.0,111200.0,0.7503382]
[1760220462166,0.04156133,111210.0,111200.0,0.7804901]
[1760220463034,0.04056133,111210.0,111200.0,0.324918]
[1760220463254,0.03956133,111210.0,111200.0,0.7804901]
[1760220463495,0.04056133,111210.0,111200.0,0.88049009]
[1760220463714,0.04156133,111210.0,111200.0,0.88049009]
[1760220463937,0.03956133,111210.0,111200.0,0.88049009]
[1760220464161,0.03956133,111210.0,111200.0,0.42691799]
[1760220464404,0.03956133,111210.0,111200.0,0.88249009]
[1760220464835,0.03956133,111210.0,111200.0,0.326918]
[1760220465480,0.03956133,111210.0,111200.0,0.7824901]
[1760220465912,0.03956133,111210.0,111200.0,0.326918]
[1760220466157,0.03956133,111210.0,111200.0,0.7824901]
[1760220466932,0.03956133,111210.0,111200.0,1.67806219]
[1760220467143,0.03956133,111210.0,111200.0,0.76691799]
[1760220467358,1e-08,111210.0,111200.0,1.79259171]
[1760220467784,1e-08,111210.0,111200.0,1.79159171]
[1760220467998,1e-08,111210.0,111200.0,1.79059171]
[1760220468221,1e-08,111210.0,111200.0,1.79159171]
[1760220469165,1e-08,111210.0,111200.0,1.79259171]
[1760220471542,0.17976184,111260.0,111250.0,0.01999999]
[1760220471753,0.17976184,111260.0,111250.0,0.0720495]
[1760220471754,0.21756184,111260.0,111250.0,0.0720495]
[1760220471976,0.24819184,111260.0,111250.0,0.0720495]
[1760220472187,0.27332369,111260.0,111250.0,0.0720495]
[1760220472409,0.24269369,111260.0,111250.0,0.25182478]
[1760220472657,0.04617728,111260.0,111250.0,0.30206478]
[1760220472868,0.2259364,111260.0,111250.0,0.30206478]
[1760220473082,0.2259364,111260.0,111250.0,0.0720495]
[1760220473885,0.2565664,111260.0,111250.0,0.0720495]
[1760220474123,0.2259364,111260.0,111250.0,0.0720495]
[1760220474356,0.2565664,111260.0,111250.0,0.0720495]
[1760220474855,0.2259364,111260.0,111250.0,0.0720495]
[1760220475289,0.24818912,111260.0,111250.0,0.0720495]
[1760220475507,0.21755912,111260.0,111250.0,0.25182478]
[1760220475925,0.24818912,111260.0,111250.0,0.25182478]
[1760220476133,0.21755912,111260.0,111250.0,0.25182478]
[1760220476555,0.0378,111260.0,111250.0,0.30206478]
[1760220476768,0.0378,111260.0,111250.0,0.75763688]
[1760220477196,0.04073384,111260.0,111250.0,0.30206478]
[1760220478911,0.27461296,111260.0,111250.0,0.05204951]
[1760220479136,0.04073384,111260.0,111250.0,0.30206478]
[1760220488425,0.04911894,111260.0,111250.0,0.30206478]
[1760220488856,0.04911894,111260.0,111250.0,0.75763688]
[1760220489248,0.04073384,111260.0,111250.0,0.75763688]
[1760220490550,0.04913354,111260.0,111250.0,0.75763688]
[1760220491245,0.04913354,111260.0,111250.0,0.30206478]
[1760220492501,0.04913354,111260.0,111250.0,0.0720495]
[1760220492709,0.0659549,111260.0,111250.0,0.29790478]
[1760220492913,0.04913354,111260.0,111250.0,0.29790478]
[1760220493338,0.06595568,111260.0,111250.0,0.29790478]
[1760220494016,0.04913354,111260.0,111250.0,0.29790478]
[1760220494691,0.04913354,111260.0,111250.0,0.56660478]
[1760220496274,0.06596411,111260.0,111250.0,0.56560478]
[1760220496693,0.06596411,111260.0,111250.0,0.51952478]
[1760220496920,0.06596411,111260.0,111250.0,0.56560478]
[1760220498004,0.06596411,111260.0,111250.0,0.3858295]
[1760220498215,0.87999123,111260.0,111250.0,0.01775]
[1760220498426,0.24572323,111260.0,111250.0,0.11752999]
[1760220498835,0.27682323,111260.0,111250.0,0.07144999]
[1760220499313,0.24572323,111260.0,111250.0,0.07144999]
[1760220499968,0.06596411,111260.0,111250.0,0.34678993]
[1760220500169,0.06596411,111260.0,111250.0,0.29730527]
[1760220503242,0.04913354,111260.0,111250.0,0.29730527]
[1760220503456,0.06598438,111260.0,111250.0,0.29730527]
[1760220505213,0.06601017,111260.0,111250.0,0.29730527]
[1760220507214,0.06601017,111260.0,111250.0,0.78302927]
[1760220507663,0.06601017,111260.0,111250.0,0.32745717]
[1760220508313,0.05758468,111260.0,111250.0,0.32745717]
[1760220508749,0.04073384,111260.0,111250.0,0.32745717]
[1760220517170,0.04073384,111260.0,111250.0,0.78302927]
[1760220517813,0.04073384,111260.0,111250.0,1.22302926]
[1760220518902,0.04073384,111260.0,111250.0,1.22402926]
[1760220519334,0.04073384,111260.0,111250.0,1.22502926]
[1760220519542,0.04073384,111260.0,111250.0,1.19630007]
[1760220521315,0.04073384,111260.0,111250.0,0.76945716]
[1760220521526,0.04073384,111260.0,111250.0,1.39826009]
[1760220527170,0.00293384,111260.0,111250.0,0.76945716]
[1760220527370,0.00293384,111260.0,111250.0,1.39826009]
[1760220531040,0.00293384,111260.0,111250.0,0.76945716]
[1760220531249,0.00293384,111260.0,111250.0,1.39826009]
[1760220531451,0.00293384,111260.0,111250.0,0.76945716]
[1760220531652,0.00293384,111260.0,111250.0,0.66945717]
[1760220531842,0.00293384,111260.0,111250.0,0.76945716]
[1760220532249,0.00293384,111260.0,111250.0,1.2982601]
[1760220532687,0.00293384,111260.0,111250.0,0.66945717]
[1760220533073,0.00293384,111260.0,111250.0,0.29930527]
[1760220533339,0.18269296,111260.0,111250.0,0.11952999]
[1760220533753,0.18269296,111260.0,111250.0,0.07344999]
[1760220533754,0.21311296,111260.0,111250.0,0.07344999]
[1760220533972,0.18269296,111260.0,111250.0,0.25322527]
[1760220534171,0.18269296,111260.0,111250.0,0.30095527]
[1760220534650,0.23714296,111260.0,111250.0,0.05245]
[1760220534854,0.23714296,111260.0,111250.0,0.25222527]
[1760220535060,0.00293384,111260.0,111250.0,0.29895527]
[1760220535441,0.00293384,111260.0,111250.0,0.34860494]
[1760220535656,0.00293384,111260.0,111250.0,0.32910717]
[1760220536713,0.04069384,111260.0,111250.0,0.32910717]
[1760220537146,0.04069384,111260.0,111250.0,0.29895527]
[1760220537360,0.22045296,111260.0,111250.0,0.29895527]
[1760220537574,0.22045296,111260.0,111250.0,0.09918]
[1760220537999,0.22045296,111260.0,111250.0,0.29895527]
[1760220538418,0.04069384,111260.0,111250.0,0.29895527]
[1760220544327,0.27595296,111260.0,111250.0,0.34014999]
[1760220544533,0.32434296,111260.0,111250.0,0.30644999]
[1760220544743,0.95314589,111260.0,111240.0,0.30644999]
[1760220544956,0.95314589,111260.0,111240.0,0.01825012]
[1760220544957,0.25181528,111250.0,111240.0,0.01825012]
[1760220545170,0.20342528,111250.0,111240.0,0.03825011]
[1760220545381,0.30314993,111250.0,111240.0,0.03825011]
[1760220545587,0.30314993,111250.0,111240.0,0.02050011]
[1760220545794,0.93195286,111250.0,111240.0,0.02050011]
[1760220547078,0.93195286,111250.0,111240.0,0.00050012]
[1760220549013,0.30314993,111250.0,111240.0,0.00050012]
[1760220549228,0.93195286,111250.0,111240.0,0.00050012]
[1760220549641,0.91246821,111250.0,111240.0,0.00050012]
[1760220549860,0.23527528,111250.0,111240.0,0.04924012]
[1760220550069,0.17977528,111250.0,111240.0,0.06924011]
[1760220550300,0.18212257,111250.0,111240.0,0.06924011]
[1760220550499,0.18212257,111250.0,111240.0,0.11519011]
[1760220550920,0.18212257,111250.0,111240.0,0.06924011]
[1760220551151,0.18212257,111250.0,111240.0,0.11519011]
[1760220551367,0.27084191,111250.0,111240.0,0.11519011]
[1760220551833,0.30269191,111250.0,111240.0,0.06924011]
[1760220551837,0.37473191,111250.0,111240.0,0.03825011]
[1760220552096,0.32634191,111250.0,111240.0,0.06924011]
[1760220553076,0.23762257,111250.0,111240.0,0.06924011]
[1760220553545,0.18212257,111250.0,111240.0,0.06924011]
[1760220553807,0.21397257,111250.0,111240.0,0.06924011]
[1760220554042,0.28601257,111250.0,111240.0,0.06924011]
[1760220554305,0.23762257,111250.0,111240.0,0.06924011]
[1760220554531,0.32634191,111250.0,111240.0,0.06924011]
[1760220555434,0.9148155,111250.0,111240.0,0.02050011]
[1760220555646,0.28601257,111250.0,111240.0,0.02050011]
[1760220556264,0.00234729,111250.0,111240.0,0.27723155]
[1760220560059,0.00234729,111250.0,111240.0,0.23128155]
[1760220560060,0.23762257,111250.0,111240.0,0.23128155]
[1760220560445,0.18212257,111250.0,111240.0,0.23128155]
[1760220560853,0.18212257,111250.0,111240.0,0.27723155]
[1760220561919,0.17977528,111250.0,111240.0,0.27723155]
[1760220562789,0.24116912,111260.0,111240.0,0.27723155]
[1760220563034,0.71680745,111260.0,111240.0,0.27723155]
[1760220563248,0.71680745,111260.0,111250.0,0.01418]
[1760220563453,0.74865745,111260.0,111250.0,0.04517]
[1760220563657,0.74924411,111260.0,111250.0,0.04517]
[1760220564287,0.83796345,111260.0,111250.0,0.01418]
[1760220564493,0.17977528,111250.0,111240.0,0.03564526]
[1760220564704,0.60702361,111250.0,111240.0,0.03564526]
[1760220564898,0.66252361,111250.0,111240.0,0.06663526]
[1760220565141,0.63887361,111250.0,111240.0,0.2464267]
[1760220566471,0.60702361,111250.0,111240.0,0.2464267]
[1760220568661,0.60702361,111250.0,111240.0,0.2923767]
[1760220569294,0.42724833,111250.0,111240.0,0.2923767]
[1760220569514,0.64535411,111260.0,111250.0,0.01999999]
[1760220569950,0.67720411,111260.0,111250.0,0.05098999]
[1760220570158,0.5479821,111260.0,111250.0,0.05098999]
[1760220570373,0.67935122,111260.0,111250.0,0.05098999]
[1760220570990,0.74869745,111260.0,111250.0,0.01999999]
[1760220571199,0.76553302,111260.0,111250.0,0.05098999]
[1760220571618,0.4818839,111260.0,111250.0,0.27671527]
[1760220571841,0.0378,111260.0,111250.0,0.30595294]
[1760220573371,0.0378,111260.0,111250.0,0.27671527]
[1760220573892,0.0378,111260.0,111250.0,0.7341155]
[1760220574121,0.0378,111260.0,111250.0,0.30686717]
[1760220574344,0.0378,111260.0,111250.0,0.76114996]
[1760220574994,0.0378,111260.0,111250.0,0.33390163]
[1760220575697,0.0378,111260.0,111250.0,0.31390164]
[1760220575922,0.0378,111260.0,111250.0,0.33490163]
[1760220576334,0.0378,111260.0,111250.0,0.33590163]
[1760220576946,0.0378,111260.0,111250.0,0.31590164]
[1760220577128,0.0378,111260.0,111250.0,0.33590163]
[1760220579617,0.0378,111260.0,111250.0,0.30886717]
[1760220580176,0.0378,111260.0,111250.0,0.78929654]
[1760220580968,0.0378,111260.0,111250.0,0.30886717]
[1760220581171,0.0378,111260.0,111250.0,0.78929654]
[1760220582544,0.0378,111260.0,111250.0,0.81633188]
[1760220583091,0.0378,111260.0,111250.0,0.33590251]
[1760220583300,0.0378,111260.0,111250.0,0.81633188]
[1760220584088,0.51822937,111260.0,111250.0,0.33590251]
[1760220584336,0.0378,111260.0,111250.0,0.30886717]
[1760220584930,0.0378,111260.0,111250.0,0.78929654]
[1760220585132,0.0378,111260.0,111250.0,0.30886717]
[1760220592800,0.0378,111260.0,111250.0,0.76383956]
[1760220593698,0.0378,111260.0,111250.0,0.30886717]
[1760220595659,0.0378,111260.0,111250.0,0.76383956]
[1760220595905,0.0378,111260.0,111250.0,0.33590122]
[1760220596101,0.0378,111260.0,111250.0,0.79087361]
[1760220597110,0.0378,111260.0,111250.0,0.33590122]
[1760220597457,0.0378,111260.0,111250.0,0.30886717]
[1760220603634,0.0378,111260.0,111250.0,0.09698999]
[1760220603837,0.77373151,111260.0,111250.0,0.002]
[1760220605234,0.17977528,111250.0,111240.0,0.02146526]
[1760220605462,0.65865767,111250.0,111240.0,0.02146526]
[1760220605719,0.73594767,111250.0,111240.0,0.02146526]
[1760220606423,0.82466701,111250.0,111240.0,0.02146526]
[1760220607365,0.73594767,111250.0,111240.0,0.02146526]
[1760220609193,1.07594767,111250.0,111240.0,0.00146527]
[1760220609674,1.53092006,111250.0,111240.0,0.00146527]
[1760220610640,5.72618806,111250.0,111240.0,0.00146527]
[1760220610876,5.75216231,111250.0,111240.0,1e-08]
[1760220611136,5.91221422,111250.0,111240.0,1e-08]
[1760220611392,5.92359678,111250.0,111240.0,1e-08]
[1760220611610,5.92358884,111250.0,111240.0,1e-08]
[1760220611832,5.91718956,111250.0,111240.0,1e-08]
[1760220612085,5.79331832,111250.0,111240.0,1e-08]
[1760220612298,5.77006766,111250.0,111240.0,1e-08]
[1760220612730,5.76906766,111250.0,111240.0,1e-08]
[1760220613160,5.77006766,111250.0,111240.0,1e-08]
[1760220617177,5.79431832,111250.0,111240.0,1e-08]
[1760220617383,5.858787,111250.0,111240.0,1e-08]
[1760220617592,5.91093556,111250.0,111240.0,1e-08]
[1760220620868,5.96217098,111250.0,111240.0,1e-08]
[1760220621109,5.93792032,111250.0,111240.0,1e-08]
[1760220621736,0.69183964,111250.0,111240.0,1e-08]
[1760220621938,0.69183964,111250.0,111240.0,0.04747001]
[1760220621939,0.73475635,111250.0,111240.0,0.04747001]
[1760220622362,0.78176635,111250.0,111240.0,1e-08]
[1760220622624,0.29971968,111250.0,111240.0,1e-08]
[1760220622820,0.81984556,111250.0,111240.0,1e-08]
[1760220623228,1.05701195,111250.0,111240.0,0.02972001]
[1760220623633,1.03119581,111250.0,111240.0,1e-08]
[1760220623811,1.07820581,111250.0,111240.0,1e-08]
[1760220624375,1.07620581,111250.0,111240.0,1e-08]
[1760220624579,1.07720581,111250.0,111240.0,1e-08]
[1760220624789,1.16692515,111250.0,111240.0,1e-08]
[1760220625593,1.03119581,111250.0,111240.0,0.02972001]
[1760220625793,0.002,111250.0,111240.0,0.27351144]
[1760220625932,0.73820581,111250.0,111240.0,0.02]
[1760220626131,0.28297528,111250.0,111240.0,0.02]
[1760220626353,0.73820581,111250.0,111240.0,0.02]
[1760220626572,0.73820581,111250.0,111240.0,0.04972]